bitfinex-derivatives/quotes_BTCF0:USTF0_20250509
["timestamp","ask_amount","ask_price","bid_price","bid_amount"]
[1746789187589,0.1977336,103250.0,103240.0,1.44104516]
[1746789187890,0.1977336,103250.0,103240.0,1.45618687]
[1746789188091,0.1977336,103250.0,103240.0,1.29618687]
[1746789188695,0.1957336,103250.0,103240.0,1.29618687]
[1746789188991,0.1967336,103250.0,103240.0,1.29618687]
[1746789189492,0.1967336,103250.0,103240.0,1.28649712]
[1746789191485,0.1967336,103250.0,103240.0,0.90050493]
[1746789191792,0.2958336,103250.0,103240.0,0.61199253]
[1746789192192,0.2958336,103250.0,103240.0,0.80574493]
[1746789192394,0.2630336,103250.0,103240.0,0.92569712]
[1746789192593,0.2630336,103250.0,103240.0,1.28649712]
[1746789192787,0.2630336,103250.0,103240.0,1.16654493]
[1746789192982,0.2630336,103250.0,103240.0,0.80574493]
[1746789193393,0.2299336,103250.0,103240.0,0.80574493]
[1746789193698,0.2371936,103250.0,103240.0,0.80574493]
[1746789195698,0.2371936,103250.0,103240.0,0.61199253]
[1746789195890,0.2697936,103250.0,103240.0,0.61199253]
[1746789196089,0.2697936,103250.0,103240.0,0.59757994]
[1746789196602,0.2697936,103250.0,103240.0,0.79133234]
[1746789196791,0.2697936,103250.0,103240.0,0.59757994]
[1746789197095,0.2697936,103250.0,103240.0,0.79133234]
[1746789197794,0.2697936,103250.0,103240.0,0.91128453]
[1746789197994,0.2371936,103250.0,103240.0,0.91128453]
[1746789199785,0.2371936,103250.0,103240.0,0.79133234]
[1746789200599,0.2371936,103250.0,103240.0,0.91128453]
[1746789202795,0.2371936,103250.0,103240.0,0.79133234]
[1746789203403,0.2361936,103250.0,103240.0,0.79133234]
[1746789203594,0.2029936,103250.0,103240.0,1.27208453]
[1746789203793,0.2049936,103250.0,103240.0,1.27208453]
[1746789204500,0.2049936,103250.0,103240.0,1.15213234]
[1746789204701,0.2049936,103250.0,103240.0,1.27208453]
[1746789205204,0.2029936,103250.0,103240.0,1.43208453]
[1746789205804,0.2332936,103250.0,103240.0,1.43208453]
[1746789206107,0.2332936,103250.0,103240.0,1.27208453]
[1746789206506,0.2332936,103250.0,103240.0,1.41911287]
[1746789206800,0.2312936,103250.0,103240.0,1.41911287]
[1746789207005,0.2312936,103250.0,103240.0,1.42011287]
[1746789207504,0.2312936,103250.0,103240.0,0.93936068]
[1746789207694,0.2941936,103250.0,103240.0,0.93936068]
[1746789208806,0.6549936,103250.0,103240.0,0.90696068]
[1746789209107,0.8149936,103250.0,103240.0,0.75993234]
[1746789209298,0.4541936,103250.0,103240.0,0.75993234]
[1746789210107,0.2941936,103250.0,103240.0,0.75993234]
[1746789211096,0.4541936,103250.0,103240.0,0.75993234]
[1746789211908,0.4541936,103250.0,103240.0,0.87988453]
[1746789212210,0.2312936,103250.0,103240.0,0.87988453]
[1746789212407,0.2009936,103250.0,103240.0,1.24068453]
[1746789213813,0.2324936,103250.0,103240.0,1.24068453]
[1746789217416,0.2324936,103250.0,103240.0,1.38771287]
[1746789219623,0.2324936,103250.0,103240.0,1.26776068]
[1746789219921,0.2324936,103250.0,103240.0,1.38771287]
[1746789220621,0.2324936,103250.0,103240.0,1.26776068]
[1746789220812,0.2324936,103250.0,103240.0,1.38771287]
[1746789221318,0.00726,103250.0,103240.0,1.38771287]
[1746789221621,0.00726,103250.0,103240.0,1.48456887]
[1746789221922,0.00726,103250.0,103240.0,2.98456887]
[1746789222220,0.00726,103250.0,103240.0,3.14456887]
[1746789224226,0.7943913,103270.0,103260.0,0.1937148]
[1746789224523,0.7943913,103270.0,103260.0,0.7188087]
[1746789224723,0.7943913,103270.0,103260.0,0.7819087]
[1746789224919,0.7943913,103270.0,103260.0,0.87874693]
[1746789225124,0.7943913,103270.0,103260.0,1.03874693]
[1746789225424,0.7983913,103270.0,103260.0,1.03874693]
[1746789225620,0.7983913,103270.0,103260.0,0.91879474]
[1746789226118,0.3891637,103270.0,103260.0,1.03874693]
[1746789226317,0.3921637,103270.0,103260.0,0.87874693]
[1746789226524,0.3291637,103270.0,103260.0,0.87874693]
[1746789227230,0.3291637,103270.0,103260.0,1.03874693]
[1746789227419,0.2283119,103270.0,103260.0,1.03874693]
[1746789227723,0.2302961,103270.0,103260.0,1.39954693]
[1746789227925,0.409215,103290.0,103270.0,0.3389401]
[1746789227926,0.4576326,103290.0,103270.0,0.3389401]
[1746789228122,0.2256779,103280.0,103270.0,1.277834]
[1746789228328,0.2556779,103280.0,103270.0,1.277834]
[1746789228519,0.2556779,103280.0,103270.0,1.37467223]
[1746789228718,0.2556779,103280.0,103270.0,1.38437664]
[1746789230630,0.2586779,103280.0,103270.0,1.47877664]
[1746789230824,0.2616779,103280.0,103270.0,1.47877664]
[1746789233521,0.2616779,103280.0,103270.0,1.35882445]
[1746789233723,0.2616779,103280.0,103270.0,1.47877664]
[1746789234735,0.2616779,103280.0,103270.0,1.46363493]
[1746789234922,0.2316779,103280.0,103270.0,1.46363493]
[1746789235123,0.2316779,103280.0,103270.0,1.34368274]
[1746789235421,0.2316779,103280.0,103270.0,1.46363493]
[1746789235721,0.2316779,103280.0,103270.0,1.47830829]
[1746789240332,0.2316773,103280.0,103270.0,1.28830829]
[1746789240536,0.038,103280.0,103270.0,1.66830829]
[1746789240827,0.2316773,103280.0,103270.0,1.66830829]
[1746789241432,0.2635773,103280.0,103270.0,1.66830829]
[1746789241931,0.2635773,103280.0,103270.0,1.65363493]
[1746789242325,0.2635773,103280.0,103270.0,1.47363493]
[1746789242931,0.2635773,103280.0,103270.0,0.82577833]
[1746789243135,0.4235773,103280.0,103270.0,0.57735613]
[1746789244038,0.4235773,103280.0,103270.0,0.69616363]
[1746789244228,0.2635773,103280.0,103270.0,0.72626363]
[1746789244429,0.2635773,103280.0,103270.0,0.68626363]
[1746789244630,0.2635773,103280.0,103270.0,0.99626363]
[1746789245134,0.2635773,103280.0,103270.0,1.01109269]
[1746789245737,0.2635773,103280.0,103270.0,1.05234375]
[1746789245939,0.2635773,103280.0,103270.0,1.08404375]
[1746789246536,0.2635773,103280.0,103270.0,1.09358404]
[1746789246933,0.0699,103280.0,103270.0,1.09358404]
[1746789247134,0.2635773,103280.0,103270.0,1.45438404]
[1746789247434,0.038,103280.0,103270.0,1.45438404]
[1746789248034,0.038,103280.0,103270.0,1.45996697]
[1746789248236,0.006,103280.0,103270.0,1.45996697]
[1746789249140,0.006,103280.0,103270.0,1.61996697]
[1746789250038,0.1996773,103280.0,103270.0,1.61996697]
[1746789250238,0.0378,103280.0,103270.0,1.45996697]
[1746789250539,0.2314773,103280.0,103270.0,1.60699531]
[1746789250738,0.2637773,103280.0,103270.0,1.60699531]
[1746789251234,0.2637773,103280.0,103270.0,1.60141238]
[1746789251932,0.2637773,103280.0,103270.0,1.69549238]
[1746789253138,0.2637773,103280.0,103270.0,1.54846404]
[1746789253437,0.2607773,103280.0,103270.0,1.54846404]
[1746789253832,0.2577773,103280.0,103270.0,1.54946404]
[1746789255139,0.4177773,103280.0,103270.0,1.54946404]
[1746789256331,0.2577773,103280.0,103270.0,1.54946404]
[1746789256533,0.2650373,103280.0,103270.0,1.54946404]
[1746789257140,0.4250373,103280.0,103270.0,1.54946404]
[1746789257734,0.4250373,103280.0,103270.0,1.39930548]
[1746789258134,0.4250373,103280.0,103270.0,1.54633382]
[1746789258437,0.4250373,103280.0,103270.0,1.34673382]
[1746789258744,0.4250373,103280.0,103270.0,1.46679238]
[1746789259136,0.2650373,103280.0,103270.0,1.46679238]
[1746789260144,0.4250373,103280.0,103270.0,1.47234767]
[1746789260840,0.4250373,103280.0,103270.0,1.37826767]
[1746789261238,0.4250373,103280.0,103270.0,1.37271238]
[1746789261439,0.4250373,103280.0,103270.0,1.37850165]
[1746789263146,0.2650373,103280.0,103270.0,1.37850165]
[1746789263750,0.2650373,103280.0,103270.0,1.37853266]
[1746789264748,0.2650373,103280.0,103270.0,1.62853266]
[1746789265749,0.2650373,103280.0,103270.0,1.58726376]
[1746789268952,0.2650373,103280.0,103270.0,1.58711079]
[1746789270747,0.2650373,103280.0,103270.0,1.58718121]
[1746789270947,0.2650373,103280.0,103270.0,1.22638121]
[1746789271150,0.2650373,103280.0,103270.0,1.58718121]
[1746789274251,0.07136,103280.0,103270.0,1.58718121]
[1746789274458,0.00726,103280.0,103270.0,1.66597087]
[1746789274859,0.00726,103280.0,103270.0,3.16597087]
[1746789275156,0.00726,103280.0,103270.0,3.32597087]
[1746789275955,0.00726,103280.0,103270.0,3.32625293]
[1746789276154,0.03796,103280.0,103270.0,3.32625293]
[1746789276355,0.2316373,103280.0,103270.0,3.24746327]
[1746789276560,0.2646373,103280.0,103270.0,3.24746327]
[1746789277054,0.2646373,103280.0,103270.0,3.08749344]
[1746789277755,0.2646373,103280.0,103270.0,3.08750917]
[1746789278353,0.2646373,103280.0,103270.0,3.11820917]
[1746789278554,0.2646373,103280.0,103270.0,3.19699883]
[1746789279755,0.07096,103280.0,103270.0,3.19699883]
[1746789279951,0.00726,103280.0,103270.0,3.04997049]
[1746789280151,0.00726,103280.0,103270.0,3.30997049]
[1746789280352,0.0301,103290.0,103280.0,0.1936773]
[1746789280547,0.0301,103290.0,103280.0,1.43640231]
[1746789280954,0.0301,103290.0,103280.0,1.54805085]
[1746789281153,0.0301,103290.0,103280.0,3.04805085]
[1746789281359,0.3048543,103300.0,103290.0,0.1936586]
[1746789281661,0.3373543,103300.0,103290.0,1.07091395]
[1746789281853,0.3373543,103300.0,103290.0,1.112123]
[1746789282053,0.3373543,103300.0,103290.0,1.22376216]
[1746789282660,0.3373543,103300.0,103290.0,1.22476216]
[1746789283164,0.3373543,103300.0,103290.0,1.22495787]
[1746789283462,0.3373543,103300.0,103290.0,1.13685916]
[1746789283662,0.3373543,103300.0,103290.0,1.25685787]
[1746789284064,0.3373543,103300.0,103290.0,1.27170247]
[1746789284555,0.3373543,103300.0,103290.0,1.13685916]
[1746789284754,0.3373543,103300.0,103290.0,1.25685787]
[1746789285159,0.4973543,103300.0,103290.0,1.25685787]
[1746789286263,0.3373543,103300.0,103290.0,1.25685787]
[1746789287164,0.4973543,103300.0,103290.0,1.25685787]
[1746789288166,0.3373543,103300.0,103290.0,1.25685787]
[1746789289154,0.4973543,103300.0,103290.0,1.25685787]
[1746789289354,0.4973543,103300.0,103290.0,1.27174159]
[1746789290669,0.4973543,103300.0,103290.0,0.79094288]
[1746789290970,0.4973543,103300.0,103290.0,0.75904288]
[1746789291266,0.4973543,103300.0,103290.0,1.11984288]
[1746789291464,0.4973543,103300.0,103290.0,0.74421382]
[1746789291769,0.4973543,103300.0,103290.0,1.10501382]
[1746789292070,0.4973543,103300.0,103290.0,0.68261382]
[1746789292960,0.4973543,103300.0,103290.0,0.48895522]
[1746789293160,0.61735301,103300.0,103290.0,0.48895522]
[1746789293369,0.4973543,103300.0,103290.0,0.50261382]
[1746789293760,0.4973543,103300.0,103290.0,0.58301382]
[1746789293960,0.4973543,103300.0,103290.0,0.70301253]
[1746789294167,0.4973543,103300.0,103290.0,0.73431253]
[1746789294368,0.4973543,103300.0,103290.0,0.74913689]
[1746789294568,0.4983543,103300.0,103290.0,0.74813689]
[1746789294866,0.4993543,103300.0,103290.0,0.74813689]
[1746789295066,0.8601543,103300.0,103290.0,0.74813689]
[1746789295267,0.8601543,103300.0,103290.0,0.59683818]
[1746789295565,0.8601543,103300.0,103290.0,0.37264808]
[1746789295870,0.98015301,103300.0,103290.0,0.32264808]
[1746789297265,0.98015301,103300.0,103290.0,0.31667994]
[1746789297464,0.98015301,103300.0,103290.0,0.32263806]
[1746789297669,0.98015301,103300.0,103290.0,0.15263806]
[1746789299171,0.98015301,103300.0,103280.0,0.6330923]
[1746789299172,0.1936773,103280.0,103270.0,0.14702834]
[1746789299367,0.1936773,103280.0,103270.0,0.51666817]
[1746789299565,0.2857773,103280.0,103270.0,0.51666817]
[1746789299768,0.2857773,103280.0,103270.0,0.64397827]
[1746789300178,0.4457773,103280.0,103270.0,1.00477827]
[1746789300375,0.3837773,103280.0,103270.0,1.16017698]
[1746789300577,0.3837773,103280.0,103270.0,1.53067698]
[1746789300578,0.1901,103280.0,103270.0,1.53067698]
[1746789300775,0.1901,103280.0,103270.0,1.54055512]
[1746789300982,0.16,103280.0,103270.0,1.39352678]
[1746789301279,0.3690263,103290.0,103280.0,0.1936773]
[1746789301480,0.3690263,103290.0,103280.0,1.0812373]
[1746789301780,0.4008263,103290.0,103280.0,1.20123601]
[1746789301973,0.4321263,103290.0,103280.0,1.29806486]
[1746789302174,0.5437075,103290.0,103280.0,1.29806486]
[1746789302573,0.5437075,103290.0,103280.0,1.29906486]
[1746789303379,0.5437075,103290.0,103280.0,1.26856486]
[1746789303580,0.5437075,103290.0,103280.0,0.95488885]
[1746789303779,0.5437075,103290.0,103280.0,1.14856615]
[1746789305784,0.5437075,103290.0,103280.0,1.17986615]
[1746789306885,0.5437075,103290.0,103280.0,1.05520615]
[1746789307086,0.5437075,103290.0,103280.0,1.02280615]
[1746789307488,0.5437075,103290.0,103280.0,0.66200615]
[1746789308479,0.5437075,103290.0,103280.0,0.78200486]
[1746789308783,0.4806075,103290.0,103280.0,0.81350486]
[1746789308984,0.4806075,103290.0,103280.0,1.20470486]
[1746789309178,0.3206075,103290.0,103280.0,1.20470486]
[1746789309378,0.2721887,103290.0,103280.0,1.20470486]
[1746789311083,0.4321887,103290.0,103280.0,1.20470486]
[1746789311287,0.4321887,103290.0,103280.0,1.21087258]
[1746789311487,0.4321887,103290.0,103280.0,1.22585735]
[1746789312687,0.4321887,103290.0,103280.0,1.10585864]
[1746789312889,0.4321887,103290.0,103280.0,1.22585735]
[1746789313089,0.4321887,103290.0,103280.0,1.10585864]
[1746789313386,0.4321887,103290.0,103280.0,1.22585735]
[1746789314189,0.2721887,103290.0,103280.0,1.22585735]
[1746789315093,0.4321887,103290.0,103280.0,1.22585735]
[1746789315786,0.4321887,103290.0,103280.0,1.10585864]
[1746789315787,0.4966887,103290.0,103280.0,1.10585864]
[1746789316186,0.4966887,103290.0,103280.0,1.10569393]
[1746789317491,0.4966887,103290.0,103280.0,1.19877393]
[1746789318096,0.4966887,103290.0,103280.0,0.83797393]
[1746789318281,0.4966887,103290.0,103280.0,0.80757393]
[1746789318486,0.4966887,103290.0,103280.0,0.71449393]
[1746789319597,0.4966887,103290.0,103280.0,0.71437334]
[1746789319894,0.4966887,103290.0,103280.0,0.74617334]
[1746789320094,0.4976887,103290.0,103280.0,0.74617334]
[1746789320396,0.4331887,103290.0,103280.0,0.86617205]
[1746789322294,0.4331887,103290.0,103280.0,0.87691954]
[1746789322598,0.4341887,103290.0,103280.0,0.87591954]
[1746789323102,0.2731887,103290.0,103280.0,0.87591954]
[1746789323898,0.2247586,103290.0,103280.0,0.87691954]
[1746789324097,0.1946586,103290.0,103280.0,0.87691954]
[1746789324287,0.2019186,103290.0,103280.0,0.87691954]
[1746789324986,0.2019186,103290.0,103280.0,0.8772585]
[1746789325802,0.00826,103290.0,103280.0,0.7272585]
[1746789325999,0.2019186,103290.0,103280.0,0.9072585]
[1746789326389,0.00826,103290.0,103280.0,1.0872585]
[1746789326593,0.2019186,103290.0,103280.0,0.88725308]
[1746789326794,0.2333186,103290.0,103280.0,0.88725308]
[1746789327399,0.2333186,103290.0,103280.0,0.87651317]
[1746789328106,0.3933186,103290.0,103280.0,0.87651317]
[1746789328407,0.3933186,103290.0,103280.0,0.8764148]
[1746789328700,0.3933186,103290.0,103280.0,1.02344314]
[1746789329997,0.4568186,103290.0,103280.0,0.99632443]
[1746789330199,0.4568186,103290.0,103280.0,0.93302443]
[1746789331699,0.4568186,103290.0,103280.0,0.96352443]
[1746789332804,0.4568186,103290.0,103280.0,1.08352314]
[1746789332993,0.4568186,103290.0,103280.0,1.11592314]
[1746789333393,0.4568186,103290.0,103280.0,0.99592443]
[1746789334798,0.4568186,103290.0,103280.0,0.99567066]
[1746789335810,0.4568186,103290.0,103280.0,1.11566937]
[1746789336704,0.26316,103290.0,103280.0,1.11566937]
[1746789336904,0.4568186,103290.0,103280.0,1.11566937]
[1746789337309,0.4568186,103290.0,103280.0,1.11571905]
[1746789339112,0.4568186,103290.0,103280.0,1.11552417]
[1746789340404,0.19966,103290.0,103280.0,1.65632417]
[1746789341110,0.2333186,103290.0,103280.0,1.65632417]
[1746789341503,0.03966,103290.0,103280.0,1.65632417]
[1746789342005,0.2333186,103290.0,103280.0,1.65632417]
[1746789343112,0.3933186,103290.0,103280.0,1.65632417]
[1746789343507,0.3933186,103290.0,103280.0,1.6413394]
[1746789344114,0.3933186,103290.0,103280.0,1.52134069]
[1746789344307,0.3933186,103290.0,103280.0,1.6413394]
[1746789344500,0.4536186,103290.0,103280.0,1.6413394]
[1746789344706,0.4536186,103290.0,103280.0,1.65609568]
[1746789345312,0.4536186,103290.0,103280.0,1.6413394]
[1746789345813,0.4536186,103290.0,103280.0,1.52134069]
[1746789346000,0.4536186,103290.0,103280.0,1.12814069]
[1746789346205,0.4536186,103290.0,103280.0,1.48894069]
[1746789346513,0.4536186,103290.0,103280.0,1.12814069]
[1746789346717,0.4536186,103290.0,103280.0,0.82814069]
[1746789347115,0.4536186,103290.0,103280.0,1.18894069]
[1746789348106,0.93441731,103290.0,103280.0,0.51108339]
[1746789348311,0.93441731,103290.0,103280.0,0.67426069]
[1746789348812,0.8144186,103290.0,103280.0,0.67426069]
[1746789349205,0.4536186,103290.0,103280.0,0.67426069]
[1746789350319,0.4536186,103290.0,103280.0,0.70696069]
[1746789350711,0.4536186,103290.0,103280.0,1.06776069]
[1746789351015,0.4536186,103290.0,103280.0,0.8269594]
[1746789351315,0.4536186,103290.0,103280.0,1.07073106]
[1746789351519,0.4536186,103290.0,103280.0,0.58993235]
[1746789352005,0.4536186,103290.0,103280.0,0.58964068]
[1746789352316,0.4536186,103290.0,103280.0,1.07043939]
[1746789352506,0.4536186,103290.0,103280.0,1.10293939]
[1746789353418,0.4536186,103290.0,103280.0,1.11760698]
[1746789355516,0.4536186,103290.0,103280.0,1.10293939]
[1746789357114,0.4536186,103290.0,103280.0,1.24996773]
[1746789357620,0.4536186,103290.0,103280.0,1.12996902]
[1746789357817,0.4536186,103290.0,103280.0,1.26464665]
[1746789358721,0.4536186,103290.0,103280.0,1.14464794]
[1746789358923,0.4536186,103290.0,103280.0,1.26464665]
[1746789360423,0.4536186,103290.0,103280.0,1.24996773]
[1746789362425,0.4536186,103290.0,103280.0,1.14465438]
[1746789362617,0.57361731,103290.0,103280.0,0.49497708]
[1746789362817,0.4536186,103290.0,103280.0,0.64865438]
[1746789363020,0.4536186,103290.0,103280.0,0.68025438]
[1746789363519,0.4536186,103290.0,103280.0,1.10031985]
[1746789363714,0.4536186,103290.0,103280.0,1.08563449]
[1746789364023,0.4536186,103290.0,103280.0,1.11563449]
[1746789364726,0.3933186,103290.0,103280.0,1.2356332]
[1746789365111,0.2333186,103290.0,103280.0,1.2356332]
[1746789365826,0.2333186,103290.0,103280.0,1.5656332]
[1746789366225,0.3933186,103290.0,103280.0,1.5656332]
[1746789366524,0.3933186,103290.0,103280.0,2.91860486]
[1746789366825,0.3943186,103290.0,103280.0,2.91860486]
[1746789367215,0.2343186,103290.0,103280.0,2.91860486]
[1746789367525,0.2343186,103290.0,103280.0,2.92384691]
[1746789367823,0.2333186,103290.0,103280.0,2.92384691]
[1746789368024,0.03966,103290.0,103280.0,2.92384691]
[1746789368324,0.2333186,103290.0,103280.0,2.92384691]
[1746789369424,0.03966,103290.0,103280.0,2.92384691]
[1746789369619,0.2333186,103290.0,103280.0,2.92384691]
[1746789369818,0.03966,103290.0,103280.0,2.92384691]
[1746789370414,0.2333186,103290.0,103280.0,2.92384691]
[1746789370618,0.03966,103290.0,103280.0,2.92384691]
[1746789370818,0.2333186,103290.0,103280.0,2.93851038]
[1746789371525,0.2333186,103290.0,103280.0,2.92384691]
[1746789371826,0.00826,103290.0,103280.0,2.92384691]
[1746789372825,0.00826,103290.0,103280.0,2.93856867]
[1746789375120,0.00826,103290.0,103280.0,3.09856867]
[1746789375927,0.00826,103290.0,103280.0,3.34559701]
[1746789376120,0.6191383,103310.0,103300.0,0.1936398]
[1746789376322,0.004,103320.0,103310.0,0.1936211]
[1746789376523,0.0341,103320.0,103310.0,1.39678186]
[1746789376732,0.0341,103320.0,103310.0,1.50451359]
[1746789376928,0.2277023,103320.0,103310.0,1.50451359]
[1746789377228,0.0341,103320.0,103310.0,1.51923535]
[1746789377429,0.009,103320.0,103310.0,1.51923535]
[1746789377629,0.2026023,103320.0,103310.0,1.51923535]
[1746789377927,0.2345023,103320.0,103310.0,1.51923535]
[1746789378126,0.0409,103320.0,103310.0,1.39923664]
[1746789378321,0.0409,103320.0,103310.0,1.51923535]
[1746789378629,0.2345023,103320.0,103310.0,1.51923535]
[1746789379019,0.0409,103320.0,103310.0,1.5205095]
[1746789379222,0.2345023,103320.0,103310.0,1.5205095]
[1746789379523,0.2295023,103320.0,103310.0,1.5205095]
[1746789379723,0.2345023,103320.0,103310.0,1.66753784]
[1746789380220,0.3945023,103320.0,103310.0,1.66753784]
[1746789380928,0.3945023,103320.0,103310.0,1.66740781]
[1746789381121,0.2678023,103320.0,103310.0,1.42740781]
[1746789381629,0.2678023,103320.0,103310.0,1.44173725]
[1746789381830,0.2678023,103320.0,103310.0,1.32173854]
[1746789382328,0.4278023,103320.0,103310.0,1.44173725]
[1746789382831,0.4278023,103320.0,103310.0,1.29470891]
[1746789383729,0.4585023,103320.0,103310.0,1.1415102]
[1746789385721,0.57850101,103320.0,103310.0,0.6267902]
[1746789386329,0.93930101,103320.0,103310.0,0.3331691]
[1746789386634,0.93930101,103320.0,103310.0,0.2131691]
[1746789387037,0.93930101,103320.0,103310.0,0.4067902]
[1746789387428,0.8193023,103320.0,103310.0,0.4067902]
[1746789387628,0.8193023,103320.0,103310.0,0.5267902]
[1746789388230,0.8193023,103320.0,103310.0,0.5265086]
[1746789388729,0.93930101,103320.0,103310.0,0.5265086]
[1746789389038,0.93930101,103320.0,103310.0,0.51574714]
[1746789391235,0.4585023,103320.0,103310.0,0.51574714]
[1746789391436,0.8193023,103320.0,103310.0,0.54614714]
[1746789391639,0.4585023,103320.0,103310.0,0.54614714]
[1746789391842,0.4585023,103320.0,103310.0,0.55691384]
[1746789392545,0.4585023,103320.0,103310.0,0.52651384]
[1746789392744,0.8193023,103320.0,103310.0,0.52651384]
[1746789392938,0.4585023,103320.0,103310.0,0.52651384]
[1746789393545,0.4585023,103320.0,103310.0,0.52615214]
[1746789393747,0.8193023,103320.0,103310.0,0.55865214]
[1746789394448,0.4585023,103320.0,103310.0,0.55865214]
[1746789396045,0.4585023,103320.0,103310.0,0.59125214]
[1746789396850,0.4585023,103320.0,103310.0,0.74175085]
[1746789397240,0.4585023,103320.0,103310.0,0.74237085]
[1746789397640,0.4585023,103320.0,103310.0,0.7423812]
[1746789398149,0.2985023,103320.0,103310.0,0.7423812]
[1746789398948,0.0409,103320.0,103310.0,1.1949812]
[1746789399341,0.2345023,103320.0,103310.0,1.18392244]
[1746789399542,0.2345023,103320.0,103310.0,1.19517313]
[1746789399839,0.0409,103320.0,103310.0,1.19517313]
[1746789400343,0.0409,103320.0,103310.0,1.07517442]
[1746789400544,0.2345023,103320.0,103310.0,1.19517313]
[1746789400747,0.0409,103320.0,103310.0,1.19553798]
[1746789401949,0.2345023,103320.0,103310.0,1.19553798]
[1746789402143,0.3945023,103320.0,103310.0,1.19553798]
[1746789402853,0.3945023,103320.0,103310.0,2.69553798]
[1746789403152,0.2009,103320.0,103310.0,2.69553798]
[1746789404146,0.0409,103320.0,103310.0,2.69553798]
[1746789404448,0.00725,103330.0,103320.0,0.1936023]
[1746789404749,0.00725,103330.0,103320.0,0.99180789]
[1746789405046,0.00725,103330.0,103320.0,1.08859925]
[1746789405247,0.19775,103330.0,103320.0,1.08859925]
[1746789405648,0.20175,103330.0,103320.0,1.08859925]
[1746789405944,0.20175,103330.0,103320.0,1.08862372]
[1746789406150,0.20175,103330.0,103320.0,0.96862501]
[1746789406351,0.20575,103330.0,103320.0,1.08862372]
[1746789407641,0.20575,103330.0,103320.0,1.07071413]
[1746789407848,0.20575,103330.0,103320.0,1.09832382]
[1746789409149,0.04575,103330.0,103320.0,1.09832382]
[1746789410045,0.20575,103330.0,103320.0,1.09832382]
[1746789411258,0.20575,103330.0,103320.0,1.09830848]
[1746789411450,0.3993336,103330.0,103320.0,1.09830848]
[1746789411650,0.4612336,103330.0,103320.0,1.09830848]
[1746789412053,0.26765,103330.0,103320.0,0.97830977]
[1746789412247,0.26765,103330.0,103320.0,1.09830848]
[1746789412450,0.4612336,103330.0,103320.0,1.09830848]
[1746789412960,0.4612336,103330.0,103320.0,1.09804965]
[1746789414461,0.26765,103330.0,103320.0,1.09804965]
[1746789415262,0.20575,103330.0,103320.0,1.18964965]
[1746789415755,0.17525,103330.0,103320.0,1.18964965]
[1746789418259,0.17525,103330.0,103320.0,1.18986031]
[1746789418650,0.17525,103330.0,103320.0,1.50663902]
[1746789419061,0.17525,103330.0,103320.0,3.00663902]
[1746789419265,0.01525,103330.0,103320.0,3.00663902]
[1746789419460,0.01525,103330.0,103320.0,2.68986031]
[1746789419762,0.01125,103330.0,103320.0,2.68986031]
[1746789419962,0.01325,103330.0,103320.0,2.5986566]
[1746789420153,0.01325,103330.0,103320.0,2.6902166]
[1746789420561,0.00725,103330.0,103320.0,2.6902166]
[1746789420863,0.00925,103330.0,103320.0,2.6902166]
[1746789421064,0.00925,103330.0,103320.0,2.7902166]
[1746789421465,0.00925,103330.0,103320.0,2.67021789]
[1746789421662,0.00925,103330.0,103320.0,2.7902166]
[1746789422166,0.16725,103330.0,103320.0,2.7902166]
[1746789422365,0.19995,103330.0,103320.0,2.7902166]
[1746789423758,0.19995,103330.0,103320.0,2.6902166]
[1746789424059,0.1927,103330.0,103320.0,2.6902166]
[1746789425265,0.2574,103330.0,103320.0,2.6902166]
[1746789425663,0.2574,103330.0,103320.0,2.6901766]
[1746789425866,0.2574,103330.0,103320.0,2.57017789]
[1746789426767,0.2574,103330.0,103320.0,2.47865789]
[1746789426967,0.2574,103330.0,103320.0,2.57013789]
[1746789427363,0.4509836,103330.0,103320.0,2.47865789]
[1746789427665,0.4509836,103330.0,103320.0,1.03873789]
[1746789428057,0.4509836,103330.0,103320.0,1.18576623]
[1746789428258,0.4509836,103330.0,103320.0,1.18576698]
[1746789428457,0.4509836,103330.0,103320.0,1.09428698]
[1746789428654,0.4509836,103330.0,103320.0,1.18576698]
[1746789429263,0.4582336,103330.0,103320.0,1.30576569]
[1746789429769,0.4582336,103330.0,103320.0,1.18576698]
[1746789430171,0.4582336,103330.0,103320.0,0.6601647]
[1746789430487,0.82823231,103330.0,103320.0,0.4665624]
[1746789430773,0.57823231,103330.0,103320.0,0.4665624]
[1746789431167,0.4582336,103330.0,103320.0,0.6601647]
[1746789431367,0.57823231,103330.0,103320.0,0.6601647]
[1746789431568,0.93903231,103330.0,103320.0,0.45521473]
[1746789431771,1.28581231,103330.0,103320.0,0.17975802]
[1746789431969,1.28581231,103330.0,103320.0,0.12985802]
[1746789432169,1.28581231,103330.0,103320.0,0.01133465]
[1746789433166,1.28981231,103330.0,103320.0,0.01133465]
[1746789433368,0.1936023,103320.0,103310.0,0.37487821]
[1746789433566,0.73600101,103320.0,103310.0,0.38591101]
[1746789433763,0.73600101,103320.0,103310.0,0.482693]
[1746789433959,0.73600101,103320.0,103310.0,0.4716602]
[1746789434164,0.89600101,103320.0,103310.0,0.4716602]
[1746789434365,0.4152023,103320.0,103310.0,0.78165891]
[1746789434575,0.4152023,103320.0,103310.0,0.6616602]
[1746789435075,0.53520101,103320.0,103310.0,0.6132555]
[1746789435267,0.89600101,103320.0,103310.0,0.2296348]
[1746789435571,0.89600101,103320.0,103310.0,0.01432944]
[1746789435572,1.11479172,103320.0,103310.0,0.01432944]
[1746789435875,0.1936586,103290.0,103280.0,0.23008208]
[1746789436175,0.3536586,103290.0,103280.0,0.61375938]
[1746789436378,0.4503586,103290.0,103280.0,0.62350598]
[1746789436677,0.4503586,103290.0,103280.0,0.73519942]
[1746789436979,0.4503586,103290.0,103280.0,1.09599942]
[1746789437570,0.4503586,103290.0,103280.0,1.09899942]
[1746789437777,0.4503586,103290.0,103280.0,1.13049942]
[1746789438162,0.4503586,103290.0,103280.0,1.13349942]
[1746789438362,0.4503586,103290.0,103280.0,0.76295282]
[1746789438674,0.4503586,103290.0,103280.0,0.9277229]
[1746789438973,0.4503586,103290.0,103280.0,0.9257229]
[1746789439178,0.4193586,103290.0,103280.0,1.04372161]
[1746789439368,0.2257,103290.0,103280.0,1.04372161]
[1746789440377,0.1925,103290.0,103280.0,1.04372161]
[1746789440978,0.1925,103290.0,103280.0,1.06418399]
[1746789441869,0.16,103290.0,103280.0,1.06418399]
[1746789442074,0.2568402,103300.0,103290.0,0.1936586]
[1746789442269,0.0632,103300.0,103290.0,0.97077091]
[1746789442572,0.2568398,103300.0,103290.0,0.97077091]
[1746789442873,0.2568398,103300.0,103290.0,1.06759039]
[1746789443173,0.4168398,103300.0,103290.0,1.06759039]
[1746789443975,0.4168398,103300.0,103290.0,1.07394108]
[1746789444174,0.1904,103300.0,103290.0,1.07394108]
[1746789444677,0.3840398,103300.0,103290.0,1.08907497]
[1746789445082,0.3840398,103300.0,103290.0,1.09007497]
[1746789445675,0.3840398,103300.0,103290.0,2.59014124]
[1746789445879,0.3840398,103300.0,103290.0,2.59114124]
[1746789446067,0.3504,103300.0,103290.0,2.59114124]
[1746789446272,0.3840398,103300.0,103290.0,2.59114124]